Cogmind - Beta 13 @@@ ROGUE MODE // 2024.07.06 @ 20:40:47 Player: celerysam Result: Destroyed by S-27 Virus with Autogun Performance ------------- Evolutions (4) 2000 Regions Visited (6) 1200 Robots Destroyed (36) 180 Value Destroyed (1139) 1139 Prototype IDs (1) 20 Alien Tech Used (0) 0 Bonus (555) 555 TOTAL SCORE: 5094 Bonus ------- High Alert Combat Kills 55 Entered DSFs 500 Cogmind --------- Core Integrity 0/850 Matter 28/300 Energy 46/100 System Corruption 0% Temperature Cool (13) Movement Flying (37) Location -6/Factory Parts ------- > --- POWER (3) -------- (None) > --- PROPULSION (6) --- Xenon Bombardment Thruster Xenon Bombardment Thruster > --- UTILITY (4) ------ (None) > --- WEAPON (2) ------- Minigun > --- INVENTORY (5) ---- VTOL Module Cryofiber Web Improved Reaction Control System Peak State ------------ > --- POWER ------------ Improved Ion Engine Light Nuclear Core > --- PROPULSION ------- Improved Treads Armored Wheel Armored Wheel Armored Wheel > --- UTILITY ---------- Heat Sink Large Storage Unit Machine Analyzer > --- WEAPON ----------- Heavy Particle Cannon Minigun > --- INVENTORY -------- Ion Engine Improved Ion Engine Improved Ion Engine Light Nuclear Core VTOL Module VTOL Module Cryofiber Web Small Storage Unit Improved Targeting Computer Hardlight Generator Beam Rifle Minigun Mini Grenade Launcher Heavy Mace Heavy Mace [Rating: 27] Favorites ----------- Power Improved Ion Engine Engine Improved Ion Engine Power Core Light Nuclear Core Propulsion Armored Wheel Treads Improved Treads Wheel Armored Wheel Hover Unit Airjet Flight Unit VTOL Module Utility Large Storage Unit Device Heat Sink Storage Large Storage Unit Processor Machine Analyzer Weapon Minigun Energy Gun Medium Laser Energy Cannon Heavy Particle Cannon Ballistic Gun Minigun Ballistic Cannon Assault Cannon Launcher Mini Grenade Launcher Impact Weapon Heavy Mace Build | -11 -10 -9 -8 -7 -7 -6 ------- Run | Yrd Mat Mat Mat Fac DSF Fac Slots Evolved 8 | . . 2 2 2 . 2 Power 2 | . . . 1 . . 1 Propulsion 4 | . . 2 . 2 . . Utility 2 | . . . 1 . . 1 Weapon . | . . . . . . . Parts Attached 58 | 7 4 13 18 . 1 15 Power 13 | 2 . 2 6 . . 3 Engine 9 | 2 . 2 3 . . 2 Core 4 | . . . 3 . . 1 Reactor . | . . . . . . . Propulsion 24 | 2 2 6 6 . 1 7 Treads 1 | . . . 1 . . . Leg . | . . . . . . . Wheel 10 | 2 2 6 . . . . Hover 1 | . . . . . 1 . Flight 12 | . . . 5 . . 7 Utility 6 | 1 2 1 2 . . . Device 2 | . 1 1 . . . . Storage 3 | 1 1 . 1 . . . Processor 1 | . . . 1 . . . Hackware . | . . . . . . . Protection . | . . . . . . . Artifact . | . . . . . . . Weapon 15 | 2 . 4 4 . . 5 Energy Gun 4 | 1 . . . . . 3 Energy Cannon 1 | . . . 1 . . . Ballistic Gun 6 | 1 . 2 1 . . 2 Ballistic Cannon 2 | . . 2 . . . . Launcher 1 | . . . 1 . . . Special Weapon . | . . . . . . . Impact Weapon 1 | . . . 1 . . . Slashing Weapon . | . . . . . . . Piercing Weapon . | . . . . . . . Special Melee Weapon . | . . . . . . . Unidentified Prototypes 1 | . . 1 . . . . Parts Lost 36 | . . 8 11 . 5 12 Power 7 | . . 1 3 . 1 2 Propulsion 19 | . . 4 6 . 4 5 Utility 3 | . . 1 1 . . 1 Weapon 7 | . . 2 1 . . 4 Highest Loss Streak 15 | . . 6 10 . 15 10 To Critical Strikes 1 | . . . . . 1 . Average Slot Usage (%) 72 | . 93 89 87 . 42 17 Engine 9 | . 14 11 11 . . 3 Wheel 25 | . 28 39 25 . . . Flight 2 | . . . 4 . 13 5 Device 4 | . 8 6 6 . . . Storage 9 | . 14 11 10 . 7 5 Processor 1 | . . . 7 . 5 . Energy Gun 2 | . 14 . . . . . Ballistic Gun 7 | . 14 10 7 . . . Ballistic Cannon 4 | . . 9 4 . . . Naked Turns 1 | . . . . . . 1 Heaviest Build 46 | 14 34 36 46 14 14 12 Greatest Support 48 | 26 26 48 48 16 16 17 Greatest Overweight (x) 9 | . 1 9 4 . 2 3 Average Overweight (x) . | . . . . . . . Largest Inventory Capacity 15 | 8 15 15 15 8 8 8 Average Capacity 12 | 7 12 15 14 8 8 7 Most Carried 15 | 6 10 15 15 6 8 8 Average Carried 10 | 3 8 12 13 6 7 6 Final Capacity 15 | 8 15 15 8 8 8 5 Final Carried 10 | 6 10 10 6 6 8 3 Class Distribution -------------------- 100% | Mutant Dominant Class ---------------- Mutant | -10/Materials Mutant | -9/Materials Mutant | -8/Materials Mutant | -7/Factory Mutant | -7/DSF Mutant | -6/Factory Resources | -11 -10 -9 -8 -7 -7 -6 ----------- Run | Yrd Mat Mat Mat Fac DSF Fac Matter Collected 971 | 167 37 438 203 . . 126 Remotely 192 | . 37 155 . . . . Salvage Created 1224 | . 55 766 267 . . 136 Parts 64 | . 4 47 8 . . 5 Haulers Intercepted . | . . . . . . . Recyclers Shooed . | . . . . . . . Parts Field Recycled . | . . . . . . . Retrieved Matter . | . . . . . . . Parts Self-Destructed . | . . . . . . . Prevented . | . . . . . . . Kills | -11 -10 -9 -8 -7 -7 -6 ------- Run | Yrd Mat Mat Mat Fac DSF Fac Combat Hostiles Destroyed 32 | . 2 19 6 . . 5 Guns 19 | . 2 12 . . . 5 Cannons 12 | . . 7 5 . . . Classes Destroyed 7 | . 2 5 . . . . Worker 1 | . . 1 . . . . Builder 1 | . . 1 . . . . Recycler 1 | . . 1 . . . . Watcher 1 | . . 1 . . . . Swarmer 10 | . 1 4 . . . 5 Grunt 15 | . 1 9 5 . . . Sentry 7 | . . 6 1 . . . Best Kill Streak 6 | . 1 6 2 . . 5 Combat Bots Only 5 | . 1 5 2 . . 5 Max Kills in Single Turn 2 | . 1 2 1 . . 1 Gunslinging . | . . . . . . . Exploded . | . . . . . . . Melee . | . . . . . . . Uniques/NPCs Destroyed . | . . . . . . . Combat | -11 -10 -9 -8 -7 -7 -6 -------- Run | Yrd Mat Mat Mat Fac DSF Fac Hostile Shots Fired 528 | . 13 163 132 . 41 179 Missed 151 | . 5 49 29 . 7 61 Damage Taken 5622 | . 84 1391 1579 . 776 1792 Core 1941 | . 11 252 250 . 564 864 Absorbed by Shields . | . . . . . . . Core Remaining (%) 61 | 100 95 37 54 . 19 . Volleys Fired 108 | . 9 48 30 . . 21 Largest 2 | . 2 2 2 . . 2 Hottest 100 | . 70 75 100 . . 100 Shots Fired 193 | . 18 94 59 . . 22 Gun 120 | . 18 51 29 . . 22 Cannon 73 | . . 43 30 . . . Launcher . | . . . . . . . Special . | . . . . . . . Kinetic 152 | . 9 89 45 . . 9 Thermal 41 | . 9 5 14 . . 13 Explosive . | . . . . . . . Electromagnetic . | . . . . . . . Robot Hit Streak 10 | . 4 10 7 . . 5 Robot Miss Streak 5 | . 2 5 3 . . 3 Penetration Max . | . . . . . . . Secondary Targets . | . . . . . . . Shots Hit Robots 125 | . 11 62 39 . . 13 Core Hits 52 | . 4 30 12 . . 6 Critical Kills 1 | . . . 1 . . . Critical Parts Destroyed . | . . . . . . . Critical Strikes 7 | . 2 2 1 . . 2 Burn 5 | . 2 1 . . . 2 Meltdown 1 | . . . 1 . . . Blast 1 | . . 1 . . . . Melee Attacks 2 | . . . 1 . 1 . Impact 2 | . . . 1 . 1 . Slashing . | . . . . . . . Piercing . | . . . . . . . Sneak Attacks . | . . . . . . . Combat Hostiles . | . . . . . . . Follow-up Attacks . | . . . . . . . Damage Inflicted 2648 | . 153 1382 892 . . 221 Guns 1344 | . 132 629 364 . . 219 Cannons 1273 | . . 753 520 . . . Explosions . | . . . . . . . Melee . | . . . . . . . Ramming 31 | . 21 . 8 . . 2 Kinetic 2129 | . 57 1344 634 . . 94 Thermal 488 | . 75 38 250 . . 125 Explosive . | . . . . . . . Electromagnetic . | . . . . . . . Impact . | . . . . . . . Slashing . | . . . . . . . Piercing . | . . . . . . . Highest Corruption . | . . . . . . . Average Corruption . | . . . . . . . Corruption Purged . | . . . . . . . Corruption Blocked . | . . . . . . . Overload Shots . | . . . . . . . Overflow Damage 3 | . . 2 1 . . . Projectiles 3 | . . 2 1 . . . Explosions . | . . . . . . . Melee . | . . . . . . . Knockbacks 8 | . . 5 3 . . . Impact . | . . . . . . . Kinetic 8 | . . 5 3 . . . Secondary . | . . . . . . . Self-Inflicted Damage 15 | . 10 . 4 . . 1 Shots . | . . . . . . . Rammed 3 | . 1 . 1 . . 1 Targets Rammed 3 | . 1 . 1 . . 1 Kicked . | . . . . . . . Crushed . | . . . . . . . Highest Temperature 466 | . 42 77 466 . . 144 Average Temperature 61 | . 16 33 109 . . 70 Received Heat Transfer 1617 | . 18 591 882 . 63 63 Effects 5 | . . . 5 . . . Shutdowns 1 | . . . 1 . . . Energy Bleed 2 | . . . 2 . . . Interference 2 | . . . 2 . . . Siege Activations . | . . . . . . . Robots Corrupted . | . . . . . . . Combat Hostiles . | . . . . . . . Parts Fried . | . . . . . . . Impact Corruptions . | . . . . . . . Robots Melted 1 | . . . 1 . . . Combat Hostiles 1 | . . . 1 . . . Parts Melted 4 | . . . 2 . . 2 Heat Transferred 1436 | . 370 185 370 . . 511 Parts Sabotaged . | . . . . . . . Parts Stolen . | . . . . . . . Parts Stripped . | . . . . . . . Power Chain Reactions . | . . . . . . . Alert | -11 -10 -9 -8 -7 -7 -6 ------- Run | Yrd Mat Mat Mat Fac DSF Fac Peak Influence 591 | . 125 591 253 81 60 149 Initial 165 | . . 52 165 81 60 4 Average 188 | . 66 359 174 81 34 43 Maximum Alert Level 2 | . . 2 1 . . . Low Security (%) 64 | 100 100 21 66 100 100 100 Level 1 23 | . . 46 33 . . . Level 2 11 | . . 32 . . . . Level 3 . | . . . . . . . Level 4 . | . . . . . . . Level 5 . | . . . . . . . High Security . | . . . . . . . Max Security . | . . . . . . . Squads Dispatched 5 | . 1 1 2 . 1 . Investigation . | . . . . . . . Extermination . | . . . . . . . Reinforcement 5 | . 1 1 2 . 1 . Assault . | . . . . . . . Garrison . | . . . . . . . Intercept . | . . . . . . . Searches Triggered . | . . . . . . . Construction Impeded . | . . . . . . . Haulers Reinforced . | . . . . . . . Active Scanning Responses . | . . . . . . . Cargo Convoy Interrupts . | . . . . . . . Stealth | -11 -10 -9 -8 -7 -7 -6 --------- Run | Yrd Mat Mat Mat Fac DSF Fac Distress Signals 5 | . . 2 2 . . 1 Communications Jammed . | . . . . . . . Distress Signals . | . . . . . . . Times Spotted 79 | . 7 26 17 . 5 24 Peak Tracking Total 12 | . 3 5 6 . 5 12 Tactical Retreats 6 | . 1 . 1 . . 4 Traps | -11 -10 -9 -8 -7 -7 -6 ------- Run | Yrd Mat Mat Mat Fac DSF Fac Traps Triggered 1 | . . . . . . 1 Indirectly . | . . . . . . . Trap Hack Attempts . | . . . . . . . Triggered . | . . . . . . . Disarmed . | . . . . . . . Reprogrammed . | . . . . . . . Reused . | . . . . . . . Traps Extracted . | . . . . . . . Installed . | . . . . . . . Triggered . | . . . . . . . Machines | -11 -10 -9 -8 -7 -7 -6 ---------- Run | Yrd Mat Mat Mat Fac DSF Fac Machines Disabled 2 | . . 1 1 . . . Max in Single Turn 1 | . . 1 1 . . . Machines Repaired . | . . . . . . . Machines Dismantled . | . . . . . . . Machines Sabotaged . | . . . . . . . Overloaded Fab Kills . | . . . . . . . Hacking | -11 -10 -9 -8 -7 -7 -6 --------- Run | Yrd Mat Mat Mat Fac DSF Fac Machines Accessed 3 | . . . 1 1 . 1 Terminals 3 | . . . 1 1 . 1 Fabricators . | . . . . . . . Repair Stations . | . . . . . . . Recycling Units . | . . . . . . . Scanalyzers . | . . . . . . . Garrison Access . | . . . . . . . Total Hacks 3 | . . . 1 1 . 1 Successful 3 | . . . 1 1 . 1 Failed . | . . . . . . . Catastrophic . | . . . . . . . Database Lockouts . | . . . . . . . Manual . | . . . . . . . Terminals 3 | . . . 1 1 . 1 Fabricators . | . . . . . . . Repair Stations . | . . . . . . . Recycling Units . | . . . . . . . Scanalyzers . | . . . . . . . Garrison Access . | . . . . . . . Terminal Hacks 3 | . . . 1 1 . 1 Open DSF 1 | . . . . 1 . . Alert Level 1 | . . . . . . 1 Unreport Threat 1 | . . . 1 . . . Fabricator Hacks . | . . . . . . . Repair Station Hacks . | . . . . . . . Recycling Unit Hacks . | . . . . . . . Scanalyzer . | . . . . . . . Garrison Access Hacks . | . . . . . . . Unauthorized Hacks . | . . . . . . . Terminals . | . . . . . . . Fabricators . | . . . . . . . Repair Stations . | . . . . . . . Recycling Units . | . . . . . . . Scanalyzers . | . . . . . . . Garrison Access . | . . . . . . . Data Cores Recovered . | . . . . . . . Used . | . . . . . . . Hacking Detections . | . . . . . . . Full Trace Events . | . . . . . . . Feedback Events . | . . . . . . . Feedback Blocked . | . . . . . . . Robot Schematics Acquired . | . . . . . . . Robots Built . | . . . . . . . Authchips . | . . . . . . . Time . | . . . . . . . Total Robot Build Rating . | . . . . . . . Part Schematics Acquired . | . . . . . . . Parts Built . | . . . . . . . Authchips . | . . . . . . . Time . | . . . . . . . Total Part Build Rating . | . . . . . . . Parts Repaired . | . . . . . . . Time . | . . . . . . . Parts Recycled . | . . . . . . . Recycled Matter . | . . . . . . . Retrieved Matter . | . . . . . . . Retrieved Components . | . . . . . . . Parts Scanalyzed . | . . . . . . . Part Schematics Acquired . | . . . . . . . Parts Damaged . | . . . . . . . Bothacking | -11 -10 -9 -8 -7 -7 -6 ------------ Run | Yrd Mat Mat Mat Fac DSF Fac Used RIF Installer . | . . . . . . . Robots Hacked . | . . . . . . . Non-combat . | . . . . . . . Combat . | . . . . . . . Robot Hacks Applied . | . . . . . . . Relay Couplers Released . | . . . . . . . Fabnet Peak Effective % . | . . . . . . . Robots Rewired . | . . . . . . . Allies Hacked . | . . . . . . . Hacks Repelled . | . . . . . . . Allies | -11 -10 -9 -8 -7 -7 -6 -------- Run | Yrd Mat Mat Mat Fac DSF Fac Total Allies . | . . . . . . . Largest Group . | . . . . . . . Highest-Rated Group . | . . . . . . . Highest-Rated Ally . | . . . . . . . Total Orders . | . . . . . . . Ally Attacks . | . . . . . . . Total Damage . | . . . . . . . Kills . | . . . . . . . Allies Corrupted . | . . . . . . . Allies Melted . | . . . . . . . Intel | -11 -10 -9 -8 -7 -7 -6 ------- Run | Yrd Mat Mat Mat Fac DSF Fac Robot Analysis Total . | . . . . . . . Derelict Logs Recovered . | . . . . . . . Drone Launches . | . . . . . . . Drone Recoveries . | . . . . . . . Exploration | -11 -10 -9 -8 -7 -7 -6 ------------- Run | Yrd Mat Mat Mat Fac DSF Fac Turns Passed 1509 | 61 216 555 318 2 47 310 Spaces Moved 1206 | 49 173 378 210 8 64 324 Core 98 | 6 . 3 4 . 15 70 Treads 8 | . . . 8 . . . Legs . | . . . . . . . Wheels 741 | 43 173 375 150 . . . Hover 1 | . . . . . 1 . Flight 358 | . . . 48 8 48 254 Fastest Speed 26 | 50 85 90 26 26 26 32 Average Speed 85 | 85 98 93 86 26 55 75 Slowest Speed 500 | 90 105 500 250 26 195 200 Overloaded Moves . | . . . . . . . Propulsion Burnouts . | . . . . . . . Robots Hopped 8 | . . . . . . 8 Cave-ins Triggered . | . . . . . . . Exploration Rate (%) 27 | 4 38 39 29 1 67 12 Regions Visited 6 Branch Regions . Pre-discovered Areas . | . . . . . . . Known Exits Taken 1 | . . . . 1 . . Unknown Exits Taken 4 | 1 1 1 1 . . . Scrap Searched . | . . . . . . . Spaces Dug 1 | . . . 1 . . . Terrain Destroyed 13 | . . 4 9 . . . Melee 1 | . . . 1 . . . Projectile 12 | . . 4 8 . . . AOE . | . . . . . . . Terrain Rammed . | . . . . . . . Walls Destroyed . | . . . . . . . Machines Disabled . | . . . . . . . Actions | -11 -10 -9 -8 -7 -7 -6 --------- Run | Yrd Mat Mat Mat Fac DSF Fac Total 1497 | 67 202 495 291 7 75 360 Wait 46 | . . 37 9 . . . Move 1185 | 48 172 377 209 7 63 309 Hop 7 | . . . . . . 7 Pick Up 63 | 12 9 15 15 . 6 6 Fast Attach 8 | . 1 . 1 . 1 5 Attach 37 | 6 . 10 11 . . 10 Detach . | . . . . . . . Swap 13 | 1 3 3 6 . . . Drop 25 | . 7 5 8 . 4 1 Fire 108 | . 9 48 30 . . 21 Melee 2 | . . . 1 . 1 . Ram 3 | . 1 . 1 . . 1 Kick . | . . . . . . . Crush . | . . . . . . . Escape Stasis . | . . . . . . . Rewire . | . . . . . . . Trap . | . . . . . . . Miscellaneous . | . . . . . . . Route ------- -11/Scrapyard -10/Materials (discovered 2 exits: [*Mat] / [*Min]) -9/Materials (discovered 2 exits: *Mat / [*Min]) -8/Materials -7/Factory -7/DSF -6/Factory History --------- Turn | Location | Event 32 | -11/Scrapyard | Discovered new exit (range 15) 62 | -11/Scrapyard | Entered Materials 198 | -10/Materials | Discovered new exit (range 15) 265 | -10/Materials | Discovered new exit (range 6) 278 | -10/Materials | Entered another Materials area 278 | -9/Materials | Evolved 2 slots: Propulsion x2 300 | -9/Materials | Build established: Mutant 623 | -9/Materials | Core integrity fell below 50% 656 | -9/Materials | Lost 6 parts (1p3n2w) 677 | -9/Materials | Discovered new exit (range 7) 808 | -9/Materials | Discovered new exit (range 16) 833 | -9/Materials | Entered another Materials area 833 | -8/Materials | Evolved 2 slots: Power x1, Utility x1 1149 | -8/Materials | Discovered new exit (range 10) 1151 | -8/Materials | Entered Factory 1151 | -7/Factory | Evolved 2 slots: Propulsion x2 1153 | -7/Factory | Identified exit to DSF 1153 | -7/Factory | Entered DSF 1173 | -7/DSF | Discovered new exit (range 15) 1188 | -7/DSF | Additional patrols routed to DSF 1191 | -7/DSF | Core integrity fell below 50% 1200 | -7/DSF | Core integrity fell below 20% 1200 | -7/DSF | Entered Factory 1200 | -6/Factory | Evolved 2 slots: Power x1, Utility x1 1212 | -6/Factory | Lost 15 parts (4p9n1u1w) 1448 | -6/Factory | Core integrity fell below 50% 1475 | -6/Factory | Core integrity fell below 20% 1505 | -6/Factory | Lost 10 parts (2p4n1u3w) 1510 | -6/Factory | Destroyed by S-27 Virus with Autogun Last Messages --------------- 01464_ Autogun destroyed. 01466_ K-01 Serf cleans the Fusion Modulator. 01467_ Penetrated by Slug. 01470_ K-01 Serf cleans the Fusion Modulator. 01470_ Slug penetrates S-27 Virus. 01470_ S-27 Virus suffers critical hit (Destroy). 01470_ S-27 Virus destroyed. 01470_ Penetrated by Slug. 01470_ Sml. Storage Unit destroyed. 01473_ K-01 Serf collects debris. 01474_ Penetrated by Slug. 01474_ Lgt. Nuclear Core destroyed. 01474_ Penetrated by Slug. 01475_ Acquired Minigun. 01478_ K-01 Serf cleans the Fusion Modulator. 01481_ K-01 Serf suffers critical hit (Destroy). 01484_ K-01 Serf cleans the Terminal. 01490_ K-01 Serf cleans the Repair Station. 01501_ Acquired Plasma Rifle. 01510_ Plasma Rifle destroyed. Map ----- +----------------------------------------------------+ | ?????????????????????????????????????????????????? | | ?????????????????????????????????????????????????? | | ?????????????????????????????????????????????????? | | ?????????????????????????????????????????????????? | | ?????????????????????????????????????????????????? | | ?????????????????????????????????????????????????? | | ?????????????????????????????????????????????????? | | ?????????????????????????????????????????????????? | | ?????????????????????????????????????????????????? | | ?????????????????????????????????????????????????? | | ?????????????????????????????????????????????????? | | ?????????????????????????????????????????????????? | | ???????????????????????????? ????????????????? | | ???????????????????????????# +???????????????? | | ???????????????????????????# #???????????????? | | ???????????????????????????# #???????????????? | | ??????????????????????????? #???????????????? | | ???????????????????????????T #???????????????? | | ???????????????????????????# #???????????????? | | ???????????????????????????# #???????????????" | | ???????????????????????????# +???????????????" | | ???????????????????????????# #?????????????? | | ???????????????????????????# #????????????? | | ?????????????????########### #???????????? | | ?????????????????# ! # #??#+#????#+#+##/ | | ?????????????????# s s @ # #### ###### | | ?????????????????# """ """g# | | ?????????????????# """s""" l | | ?????????????????# """ """g# | | ?????????????????# g # | | ?????????????????# s # | | ?????????????????# ############### """ | | ?????????????????###########?????????????# R" | | ?????????????????????????????????????????# """ | | ?????????????????????????????????????????# | | ?????????????????????????????????????????# | | ?????????????????????????????????????????# ### | | ?????????????????????????????????????????# #?? | | ?????????????????????????????????????????# #?? | | ?????????????????????????????????????????# #?? | | ?????????????????????????????????????????# ?? | | ?????????????????????????????????????????# ? | | ?????????????????????????????????????????+ ? | | ?????????????????????????????????????????# """ ? | | ?????????????????????????????????????????# ""??? | | ?????????????????????????????????????????# ????? | | ?????????????????????????????????????????#???????? | | ?????????????????????????????????????????????????? | | ?????????????????????????????????????????????????? | | ?????????????????????????????????????????????????? | +----------------------------------------------------+ Best States ------------- Heat Dissipation 41 Energy Generation 21 Energy Capacity 430 Matter Stores 237 Matter Capacity 300 Sight Range 16 Terrain Scan Density 10 Evasion (%) 64 Recoil Reduction 1 Item Schematics ----------------- None Robot Schematics ------------------ None Fabricated ------------ Nothing Alien Tech Used ----------------- None Achievements -------------- None Challenges ------------ None Game ------ Seed SapperHeartAccelerator Manual? 0 Play Time 00:27:41 Cumulative 88.9 hours Start 2024.07.06 @ 19:53:41 End 2024.07.06 @ 20:40:47 Sessions 1 Manual Loads 0 Difficulty Rogue Special Mode None Game No. 128 Rogue 128 Adventurer 0 Explorer 0 Win Type - Total 0 Types 0/0/0/0/0/0/0/0/0 Lore% 39 Gallery% 53 Achievement% 34 Wizard Run 0 Options --------- Layout 0 ASCII 0 Keyboard 0 Movement Mouse Keybinds 0 Fullscreen 1 Font 24/Smallcaps Map View 76x50 Zoom Use 0% Tactical HUD 1 Map Filters NONE Filters NONE Steam 1 RUN: 18d6f26e-feba-466d-9124-b7c74c19bf93